bitfinex/quotes_BTCUSD_20241216
["timestamp","ask_amount","ask_price","bid_price","bid_amount"]
[1734323628635,0.0778,104650.0,104630.0,0.00034186]
[1734323628934,0.0778864,104660.0,104640.0,0.24757339]
[1734323629138,8.64e-05,104660.0,104650.0,0.341113]
[1734323629340,0.09600634,104670.0,104660.0,0.191094]
[1734323629545,0.11276572,104680.0,104650.0,0.578513]
[1734323629713,0.30382772,104680.0,104650.0,0.578513]
[1734323630452,0.023,104670.0,104650.0,0.578513]
[1734323630909,0.023,104670.0,104650.0,0.769615]
[1734323631554,0.023,104670.0,104650.0,0.82606939]
[1734323635209,0.023,104670.0,104650.0,0.83780499]
[1734323635816,0.023,104670.0,104650.0,0.83028381]
[1734323636654,0.0811,104660.0,104650.0,0.1617356]
[1734323636854,0.1041,104660.0,104650.0,0.1617356]
[1734323637491,0.1041,104660.0,104650.0,0.11354418]
[1734323638461,0.1041,104660.0,104650.0,0.1060417]
[1734323640560,0.1041,104660.0,104630.0,0.40461364]
[1734323640765,0.023,104650.0,104630.0,0.47691156]
[1734323640966,0.023,104650.0,104630.0,0.38262086]
[1734323641376,0.023,104650.0,104630.0,0.43907525]
[1734323641596,0.023,104650.0,104630.0,0.38262086]
[1734323642187,0.023,104650.0,104640.0,0.15]
[1734323643832,0.023,104650.0,104640.0,0.39758539]
[1734323644243,0.03809999,104660.0,104640.0,0.39758539]
[1734323644383,0.023,104650.0,104640.0,0.341131]
[1734323644588,0.023,104650.0,104640.0,0.33364642]
[1734323645780,0.05485772,104670.0,104650.0,0.18362706]
[1734323645992,0.05485772,104670.0,104650.0,0.43118445]
[1734323646140,0.00505772,104670.0,104660.0,0.05645439]
[1734323646344,0.00505772,104670.0,104650.0,0.62165752]
[1734323646726,0.00505772,104670.0,104650.0,0.61799733]
[1734323646932,0.00505772,104670.0,104660.0,0.191094]
[1734323648366,0.02805772,104670.0,104660.0,0.191094]
[1734323649627,0.02805772,104670.0,104660.0,0.53500278]
[1734323649790,0.0230863,104670.0,104660.0,0.47854839]
[1734323653459,8.63e-05,104670.0,104660.0,0.47854839]
[1734323654377,0.10838396,104690.0,104660.0,0.66963239]
[1734323654955,0.29942496,104690.0,104660.0,0.86071639]
[1734323655543,0.29942496,104690.0,104660.0,0.66962239]
[1734323655762,0.29942496,104690.0,104670.0,0.191073]
[1734323656392,0.023,104680.0,104670.0,0.191073]
[1734323656714,0.023,104680.0,104670.0,0.19044323]
[1734323660937,0.023,104680.0,104670.0,0.24689762]
[1734323661841,0.0230863,104680.0,104670.0,0.24689762]
[1734323663334,0.0230863,104680.0,104670.0,0.19044323]
[1734323663674,0.1040863,104680.0,104660.0,0.532166]
[1734323664328,0.1040863,104680.0,104660.0,0.77970339]
[1734323666003,0.1040863,104680.0,104660.0,0.58861939]
[1734323666456,0.1040863,104680.0,104660.0,0.77970339]
[1734323666681,0.3434463,104680.0,104660.0,0.341082]
[1734323667875,0.5345143,104680.0,104660.0,0.15]
[1734323668832,0.5345543,104680.0,104660.0,0.15]
[1734323669685,0.023,104660.0,104650.0,0.0001726]
[1734323669853,0.023,104660.0,104650.0,0.00034166]
[1734323670338,0.02797137,104660.0,104650.0,0.00034166]
[1734323670743,0.29746537,104660.0,104650.0,0.00034166]
[1734323670942,0.34286537,104660.0,104650.0,0.00034166]
[1734323672282,0.15177137,104660.0,104650.0,0.00034166]
[1734323673462,0.34286537,104660.0,104650.0,0.00034166]
[1734323675719,0.15177137,104660.0,104650.0,0.00034166]
[1734323679634,0.34286537,104660.0,104650.0,0.00034166]
[1734323682864,0.02797137,104660.0,104650.0,0.19145466]
[1734323683226,0.00497137,104660.0,104650.0,0.19145466]
[1734323688523,0.00497137,104660.0,104650.0,0.61669975]
[1734323694312,0.08747256,104680.0,104660.0,0.191094]
[1734323695269,0.08747256,104680.0,104660.0,0.38218]
[1734323696394,0.06858396,104680.0,104660.0,0.43862239]
[1734323696578,0.06858396,104680.0,104670.0,0.191076]
[1734323696795,0.09158396,104680.0,104670.0,0.191076]
[1734323697197,0.09158396,104680.0,104660.0,0.43862239]
[1734323697396,0.09158396,104680.0,104660.0,0.62970539]
[1734323698418,8.63e-05,104670.0,104660.0,0.58861939]
[1734323698622,8.63e-05,104670.0,104660.0,0.532165]
[1734323699325,0.02567025,104680.0,104660.0,0.532165]
[1734323699525,0.02567025,104680.0,104660.0,0.54334884]
[1734323699956,0.023,104680.0,104660.0,0.81113284]
[1734323700321,0.023,104680.0,104670.0,0.191076]
[1734323700543,0.1102054,104690.0,104680.0,0.341058]
[1734323700913,8.63e-05,104690.0,104680.0,0.39751239]
[1734323701436,8.63e-05,104690.0,104680.0,0.05645439]
[1734323701639,8.63e-05,104690.0,104680.0,0.24751239]
[1734323701839,8.63e-05,104690.0,104680.0,0.32421239]
[1734323702759,8.63e-05,104690.0,104680.0,0.32413001]
[1734323703563,8.63e-05,104690.0,104670.0,0.429738]
[1734323703762,0.1911263,104690.0,104670.0,0.6003287]
[1734323703998,0.3821753,104690.0,104670.0,0.0476]
[1734323704215,0.12505799,104680.0,104660.0,0.51765484]
[1734323704474,0.405135,104680.0,104660.0,0.05918384]
[1734323704670,0.191076,104670.0,104660.0,0.01118384]
[1734323704888,0.191076,104670.0,104650.0,0.75490505]
[1734323705089,0.191076,104670.0,104650.0,0.84919575]
[1734323706047,0.191076,104670.0,104660.0,0.15]
[1734323707357,0.382167,104670.0,104650.0,0.01145837]
[1734323707531,0.191094,104660.0,104650.0,0.01145837]
[1734323707753,0.214094,104660.0,104650.0,0.01145837]
[1734323708328,0.214094,104660.0,104650.0,0.00034166]
[1734323709376,0.14809399,104660.0,104650.0,0.00034166]
[1734323710127,0.6503433,104670.0,104650.0,0.00034166]
[1734323710815,0.66974267,104670.0,104650.0,0.00034166]
[1734323713006,8.63e-05,104670.0,104660.0,0.4270879]
[1734323713438,8.63e-05,104670.0,104660.0,0.5213786]
[1734323713601,8.63e-05,104670.0,104660.0,0.5142847]
[1734323714331,0.01377259,104690.0,104670.0,0.382143]
[1734323718904,0.01377259,104690.0,104670.0,0.39315535]
[1734323720510,0.20481359,104690.0,104670.0,0.20208035]
[1734323720975,0.20481359,104690.0,104670.0,0.20225295]
[1734323721650,0.2097839,104690.0,104670.0,0.20225295]
[1734323721952,0.2098702,104690.0,104670.0,0.20225295]
[1734323723917,0.48658563,104690.0,104670.0,0.0001726]
[1734323724096,0.67764063,104690.0,104670.0,0.0001726]
[1734323724299,0.80615228,104690.0,104670.0,0.0001726]
[1734323724927,0.48658563,104690.0,104660.0,0.63328027]
[1734323725767,0.4009112,104690.0,104660.0,0.63328027]
[1734323725907,0.48658563,104690.0,104660.0,0.63328027]
[1734323726333,0.48658563,104690.0,104670.0,0.191075]
[1734323728324,0.4866148,104690.0,104670.0,0.191075]
[1734323729080,0.4866148,104690.0,104670.0,0.38215]
[1734323729081,0.2955738,104690.0,104670.0,0.38215]
[1734323730533,0.2955738,104690.0,104670.0,0.191075]
[1734323732698,0.30671508,104690.0,104670.0,0.191075]
[1734323732895,0.22101148,104690.0,104670.0,0.191075]
[1734323733055,0.30674287,104690.0,104670.0,0.191075]
[1734323733581,0.11570187,104690.0,104670.0,0.382142]
[1734323733794,0.11570187,104690.0,104670.0,0.3823146]
[1734323733960,0.11570187,104690.0,104670.0,0.1912396]
[1734323734307,0.11570187,104690.0,104670.0,0.3823066]
[1734323734937,0.43533996,104690.0,104670.0,0.3823066]
[1734323739848,0.77710438,104690.0,104670.0,0.0001726]
[1734323740050,1.23379943,104690.0,104670.0,0.0001726]
[1734323740428,1.04274243,104690.0,104670.0,0.0001726]
[1734323740593,1.23379643,104690.0,104670.0,0.0001726]
[1734323741199,1.13962117,104690.0,104670.0,0.0001726]
[1734323742465,0.89214245,104690.0,104670.0,0.0001726]
[1734323743778,1.08319445,104690.0,104670.0,0.0001726]
[1734323744728,0.89214245,104690.0,104670.0,0.0001726]
[1734323745073,1.08319645,104690.0,104670.0,0.0001726]
[1734323745388,0.191058,104680.0,104670.0,0.0001726]
[1734323747785,0.27678939,104680.0,104670.0,0.0001726]
[1734323748349,0.54468007,104680.0,104670.0,0.0001726]
[1734323748554,0.65157718,104680.0,104670.0,0.0001726]
[1734323751460,0.65172913,104680.0,104670.0,0.0001726]
[1734323752099,0.67105685,104680.0,104670.0,0.0001726]
[1734323755266,0.8426412,104680.0,104670.0,0.0001726]
[1734323756272,0.8196412,104680.0,104670.0,0.0001726]
[1734323757374,0.8197275,104680.0,104670.0,0.0001726]
[1734323758207,1.03420793,104680.0,104670.0,0.0001726]
[1734323758927,1.12838319,104680.0,104670.0,0.0001726]
[1734323759429,1.03420793,104680.0,104670.0,0.0001726]
[1734323759782,0.87615222,104680.0,104670.0,0.0001726]
[1734323760408,0.49008744,104680.0,104670.0,0.0001726]
[1734323760629,0.87649213,104680.0,104670.0,0.0001726]
[1734323762065,0.87647744,104680.0,104670.0,0.0001726]
[1734323762572,0.95590216,104680.0,104670.0,0.0001726]
[1734323762784,0.82711529,104680.0,104670.0,0.0001726]
[1734323765676,0.56951216,104680.0,104670.0,0.0001726]
[1734323766442,0.78399906,104680.0,104670.0,0.0001726]
[1734323767052,1.02068199,104680.0,104670.0,0.0001726]
[1734323767270,1.20797348,104680.0,104670.0,0.0001726]
[1734323767848,1.20771779,104680.0,104670.0,0.0001726]
[1734323768509,1.20654634,104680.0,104670.0,0.0001726]
[1734323768898,1.0687958,104680.0,104670.0,0.0001726]
[1734323769099,0.70252544,104670.0,104660.0,0.0001726]
[1734323769281,1.05416358,104670.0,104660.0,0.0001726]
[1734323769680,1.00913618,104670.0,104660.0,0.0001726]
[1734323770149,1.04581911,104670.0,104660.0,0.0001726]
[1734323770386,1.13999437,104670.0,104660.0,0.0001726]
[1734323770891,1.08999437,104670.0,104660.0,0.0001726]
[1734323771312,1.08977402,104670.0,104660.0,0.0001726]
[1734323772577,1.08977402,104670.0,104630.0,0.0001728]
[1734323772578,0.13584944,104640.0,104630.0,0.0001728]
[1734323772782,0.50690865,104640.0,104630.0,0.0001728]
[1734323772917,0.45048393,104640.0,104630.0,0.0001728]
[1734323773115,0.5789402,104640.0,104630.0,0.0001728]
[1734323773342,0.45048393,104640.0,104630.0,0.0001728]
[1734323774340,0.36484642,104640.0,104630.0,0.0001728]
[1734323774951,0.42127114,104640.0,104630.0,0.0001728]
[1734323775157,0.5154464,104640.0,104630.0,0.0001728]
[1734323775609,0.42127114,104640.0,104630.0,0.0001728]
[1734323775835,0.47127114,104640.0,104630.0,0.0001728]
[1734323776051,0.68330865,104640.0,104630.0,0.0001728]
[1734323776424,0.69427203,104640.0,104630.0,0.0001728]
[1734323777286,0.60863452,104640.0,104630.0,0.0001728]
[1734323777507,0.70974319,104640.0,104630.0,0.0001728]
[1734323777715,0.62783866,104640.0,104630.0,0.0001728]
[1734323789050,0.81452159,104640.0,104630.0,0.0001728]
[1734323789248,0.94989285,104640.0,104630.0,0.0001728]
[1734323789452,0.86452159,104640.0,104630.0,0.0001728]
[1734323789712,0.94989285,104640.0,104630.0,0.0001728]
[1734323789911,1.04904197,104640.0,104630.0,0.0001728]
[1734323793288,1.30426612,104640.0,104630.0,0.0001728]
[1734323793497,0.241168,104620.0,104610.0,0.0001724]
[1734323793668,0.47130814,104620.0,104610.0,0.0001724]
[1734323794652,0.47141562,104620.0,104610.0,0.0001724]
[1734323794968,0.55648202,104620.0,104610.0,0.0001724]
[1734323796094,0.47141562,104620.0,104610.0,0.0001724]
[1734323797659,0.35856618,104620.0,104610.0,0.0001724]
[1734323797866,0.19127548,104620.0,104610.0,0.1234724]
[1734323798071,0.00010748,104620.0,104610.0,0.1234724]
[1734323799092,0.19127548,104620.0,104610.0,0.1234724]
[1734323799915,0.2102686,104620.0,104610.0,0.1234724]
[1734323802811,0.19127548,104620.0,104610.0,0.1234724]
[1734323810331,0.19624908,104620.0,104610.0,0.1234724]
[1734323811731,0.28167483,104620.0,104610.0,0.1234724]
[1734323812158,0.19624908,104620.0,104610.0,0.1234724]
[1734323812521,0.28167483,104620.0,104610.0,0.1234724]
[1734323813434,0.40981346,104620.0,104610.0,0.1234724]
[1734323814245,0.28167483,104620.0,104610.0,0.1234724]
[1734323814884,0.40981346,104620.0,104610.0,0.1234724]
[1734323817135,0.58066497,104620.0,104610.0,0.1234724]
[1734323818385,0.67484023,104620.0,104610.0,0.1234724]
[1734323818596,0.58066497,104620.0,104610.0,0.1234724]
[1734323819498,0.63708969,104620.0,104610.0,0.1234724]
[1734323820303,0.73138039,104620.0,104610.0,0.0777724]
[1734323820456,0.85951903,104620.0,104610.0,0.0001724]
[1734323821001,0.86209622,104620.0,104610.0,0.0001724]
[1734323821218,0.95627148,104620.0,104610.0,0.0001724]
[1734323823654,0.86209622,104620.0,104610.0,0.0001724]
[1734323824066,0.92899176,104620.0,104610.0,0.0001724]
[1734323824216,0.87256704,104620.0,104610.0,0.0001724]
[1734323824394,0.74378411,104620.0,104610.0,0.0001724]
[1734323824594,0.191186,104610.0,104580.0,0.39337299]
[1734323824825,0.46825514,104610.0,104580.0,0.50258296]
[1734323825025,0.46825514,104610.0,104580.0,0.48766369]
[1734323825267,0.65945614,104610.0,104580.0,0.48766369]
[1734323827804,0.65945614,104610.0,104590.0,0.1248]
[1734323829443,0.65947414,104610.0,104590.0,0.1248]
[1734323830053,0.191204,104600.0,104590.0,0.1248]
[1734323831886,0.191204,104600.0,104590.0,0.0768]
[1734323832110,0.191204,104600.0,104580.0,0.13951399]
[1734323832252,0.573639,104600.0,104580.0,0.13951399]
[1734323832593,0.65950714,104600.0,104580.0,0.13951399]
[1734323832795,0.66447839,104600.0,104580.0,0.13951399]
[1734323833032,0.38738925,104600.0,104580.0,0.33075399]
[1734323833858,0.191222,104590.0,104580.0,0.2786]
[1734323834658,0.47327699,104600.0,104580.0,0.2786]
[1734323835493,0.191222,104590.0,104580.0,0.2786]
[1734323836475,0.191222,104590.0,104580.0,0.2786863]
[1734323838736,0.47327699,104600.0,104580.0,0.2786863]
[1734323838966,0.00497125,104600.0,104580.0,0.71758102]
[1734323839283,0.97901171,104610.0,104580.0,0.63848102]
[1734323839488,0.97901171,104610.0,104590.0,0.0774]
[1734323839489,1.07330241,104610.0,104590.0,0.0774]
[1734323841247,0.191204,104600.0,104590.0,0.0774]
[1734323842750,1.07330241,104610.0,104590.0,0.0774]
[1734323846782,0.382435,104600.0,104580.0,0.2753863]
[1734323846986,0.382435,104600.0,104580.0,0.4666253]
[1734323847406,0.46830387,104600.0,104580.0,0.4666253]
[1734323847957,0.46830387,104600.0,104590.0,8.63e-05]
[1734323848192,0.382435,104600.0,104590.0,8.63e-05]
[1734323848950,1.07330341,104610.0,104590.0,0.0774863]
[1734323849162,0.88210341,104610.0,104590.0,0.0774863]
[1734323849397,1.0073014,104610.0,104590.0,0.0774863]
[1734323849682,0.83501051,104610.0,104590.0,0.0774863]
[1734323850069,1.02620951,104610.0,104590.0,0.0774863]
[1734323851367,0.83501051,104610.0,104590.0,0.0774863]
[1734323852042,1.08263523,104610.0,104590.0,0.0774863]
[1734323852455,0.83501051,104610.0,104590.0,0.0774863]
[1734323852659,0.49558781,104610.0,104590.0,0.0774863]
[1734323852834,0.71025046,104610.0,104590.0,0.0774863]
[1734323853038,0.90144946,104610.0,104590.0,0.0774863]
[1734323854466,0.71025046,104610.0,104590.0,0.0774863]
[1734323854687,0.71024946,104610.0,104590.0,0.0774863]
[1734323855464,0.40585465,104610.0,104590.0,0.2687073]
[1734323855724,0.21466265,104610.0,104590.0,0.4599293]
[1734323856741,0.40585065,104610.0,104590.0,0.2687073]
[1734323857255,0.40585805,104610.0,104590.0,0.2687073]
[1734323859366,0.27722862,104610.0,104580.0,0.5820453]
[1734323859562,0.27722862,104610.0,104590.0,0.191222]
[1734323859962,0.35982862,104610.0,104590.0,0.191222]
[1734323861015,0.34192942,104600.0,104580.0,0.0495863]
[1734323861226,0.63948972,104600.0,104580.0,0.1500863]
[1734323861468,0.83070972,104600.0,104580.0,0.1500863]
[1734323861708,0.191222,104590.0,104580.0,0.1500863]
[1734323862858,0.191222,104590.0,104580.0,8.63e-05]
[1734323863071,0.32644672,104590.0,104580.0,8.63e-05]
[1734323863498,0.41231474,104590.0,104580.0,8.63e-05]
[1734323863731,0.63540747,104590.0,104580.0,8.63e-05]
[1734323864165,0.50660544,104590.0,104580.0,8.63e-05]
[1734323864375,0.31538344,104590.0,104580.0,8.63e-05]
[1734323864801,0.50660544,104590.0,104580.0,8.63e-05]
[1734323867663,0.51730775,104590.0,104580.0,8.63e-05]
[1734323869344,0.50773246,104590.0,104580.0,8.63e-05]
[1734323870961,0.47812851,104590.0,104580.0,8.63e-05]
[1734323871130,0.56398805,104590.0,104580.0,8.63e-05]
[1734323871795,0.50772398,104590.0,104580.0,8.63e-05]
[1734323872009,0.6365133,104590.0,104580.0,8.63e-05]
[1734323872194,0.6815133,104590.0,104580.0,8.63e-05]
[1734323872389,0.85323239,104590.0,104580.0,8.63e-05]
[1734323873416,0.6815133,104590.0,104580.0,8.63e-05]
[1734323877153,0.62508858,104590.0,104580.0,8.63e-05]
[1734323877330,0.51086387,104590.0,104580.0,8.63e-05]
[1734323877534,0.28778385,104590.0,104580.0,8.63e-05]
[1734323877795,0.20192431,104590.0,104580.0,8.63e-05]
[1734323880898,0.92202741,104600.0,104580.0,0.05651102]
[1734323880899,0.6938836,104600.0,104580.0,0.05651102]
[1734323881196,1.06584795,104610.0,104580.0,0.4645543]
[1734323881402,0.64498137,104610.0,104580.0,0.4645443]
[1734323881621,0.0001726,104590.0,104580.0,0.4645443]
[1734323881854,0.0001726,104590.0,104580.0,0.18636521]
[1734323882205,0.0001726,104590.0,104580.0,0.37759521]
[1734323883964,0.0001726,104590.0,104580.0,0.72821063]
[1734323884969,0.0001726,104590.0,104580.0,0.80471063]
[1734323885145,0.0001726,104590.0,104580.0,0.81506449]
[1734323889506,0.13567736,104620.0,104600.0,0.191204]
[1734323889711,0.11039162,104620.0,104600.0,0.191204]
[1734323890555,0.09966311,104620.0,104600.0,0.382408]
[1734323890906,0.0806,104620.0,104600.0,0.382408]
[1734323893730,0.0806863,104620.0,104600.0,0.382408]
[1734323893941,0.2718543,104620.0,104600.0,0.191204]
[1734323894893,0.2718543,104620.0,104600.0,0.20151473]
[1734323896116,0.0806863,104620.0,104600.0,0.39271873]
[1734323898517,0.2718543,104620.0,104600.0,0.20151473]
[1734323899490,0.0806863,104620.0,104600.0,0.20151473]
[1734323900089,0.0806863,104620.0,104600.0,0.39271873]
[1734323900951,0.0814,104610.0,104600.0,0.191204]
[1734323901187,0.1309863,104620.0,104600.0,0.191204]
[1734323902950,0.0814863,104620.0,104600.0,0.43882272]
[1734323903153,0.0814863,104620.0,104600.0,0.382398]
[1734323903550,0.0814863,104620.0,104600.0,0.573592]
[1734323903982,0.0814863,104620.0,104600.0,0.382388]
[1734323904200,0.0814863,104620.0,104610.0,0.191186]
[1734323910244,8.63e-05,104620.0,104610.0,0.67572614]
[1734323910397,8.63e-05,104620.0,104610.0,0.72572614]
[1734323910599,8.63e-05,104620.0,104610.0,0.66930142]
[1734323910794,8.63e-05,104620.0,104610.0,0.5628767]
[1734323911534,8.63e-05,104620.0,104610.0,0.61930142]
[1734323914280,8.63e-05,104620.0,104610.0,0.62967914]
[1734323914527,0.0814,104640.0,104620.0,0.58873372]
[1734323914528,0.01557259,104640.0,104620.0,0.58873372]
[1734323915273,0.01557259,104640.0,104630.0,0.341149]
[1734323918596,0.01557259,104640.0,104630.0,0.15]
[1734323919783,0.19031288,104650.0,104630.0,0.15]
[1734323919983,0.28460358,104650.0,104630.0,0.15]
[1734323920666,0.47572558,104650.0,104630.0,0.15]
[1734323920883,0.66685158,104650.0,104620.0,0.191151]
[1734323921055,0.47572558,104650.0,104620.0,0.191151]
[1734323921203,0.47572558,104650.0,104620.0,0.382318]
[1734323922905,0.0775,104640.0,104620.0,0.382318]
[1734323924501,0.01149999,104640.0,104620.0,0.382318]
[1734323924882,0.01149999,104640.0,104620.0,0.62990072]
[1734323925084,0.53311277,104650.0,104620.0,0.62990072]
[1734323925285,0.53311277,104650.0,104620.0,0.43873372]
[1734323925929,0.55263737,104650.0,104620.0,0.43873372]
[1734323926080,0.55263737,104650.0,104620.0,0.62989072]
[1734323926480,0.55263737,104650.0,104620.0,0.70839072]
[1734323926680,0.36151537,104650.0,104620.0,0.70839072]
[1734323927283,0.07691179,104650.0,104630.0,0.191148]
[1734323927487,0.458609,104660.0,104630.0,0.37117272]
[1734323927711,0.5528997,104660.0,104630.0,0.56232072]
[1734323927914,0.7440067,104660.0,104630.0,0.505896]
[1734323928522,8.63e-05,104640.0,104630.0,0.655896]
[1734323929073,8.63e-05,104640.0,104630.0,0.71232072]
[1734323929292,8.63e-05,104640.0,104630.0,0.655896]
[1734323934105,0.0001263,104640.0,104630.0,0.655896]
[1734323934536,0.41218653,104660.0,104630.0,0.655896]
[1734323934912,0.41218653,104660.0,104630.0,0.66629984]
[1734323936900,0.02999653,104660.0,104640.0,0.19113]
[1734323937328,0.77960978,104670.0,104640.0,0.26763]
[1734323937527,0.51349776,104670.0,104640.0,0.51517572]
[1734323937705,0.42788971,104670.0,104640.0,0.70629772]
[1734323938646,0.42788971,104670.0,104640.0,0.51516772]
[1734323938844,0.42788971,104670.0,104650.0,0.191112]
[1734323939043,0.44655253,104670.0,104640.0,0.70628472]
[1734323940062,0.44672157,104670.0,104640.0,0.70628472]
[1734323940266,8.63e-05,104660.0,104640.0,0.70628472]
[1734323940926,8.63e-05,104660.0,104640.0,0.51516272]
[1734323941130,8.63e-05,104660.0,104640.0,0.458738]
[1734323946607,0.1911813,104660.0,104640.0,0.0765]
[1734323946967,0.191114,104650.0,104630.0,0.2728]
[1734323947221,0.412272,104660.0,104630.0,0.2277]
[1734323947422,0.603379,104660.0,104630.0,0.418848]
[1734323947622,0.603379,104660.0,104630.0,0.609997]
[1734323947848,0.3179813,104660.0,104630.0,0.76071242]
[1734323948050,0.3179813,104660.0,104640.0,0.191129]
[1734323950915,0.3179813,104660.0,104630.0,0.5131307]
[1734323950916,0.32809051,104660.0,104630.0,0.5131307]
[1734323951123,0.32809051,104660.0,104630.0,0.8954067]
[1734323952669,4e-05,104650.0,104630.0,0.8954067]
[1734323953248,4e-05,104650.0,104640.0,0.0001726]
[1734323954602,0.51910921,104660.0,104640.0,0.0001726]
[1734323955169,0.6048658,104660.0,104640.0,0.0001726]
[1734323956377,0.51910921,104660.0,104630.0,0.51051155]
[1734323959486,0.69908829,104660.0,104630.0,0.22508185]
[1734323959689,0.52077472,104650.0,104620.0,0.48056982]
[1734323959832,0.191133,104640.0,104620.0,0.2793726]
[1734323960033,0.191149,104630.0,104620.0,0.0001726]
[1734323961964,0.5586667,104640.0,104620.0,0.0001726]
[1734323962168,0.464376,104640.0,104620.0,0.0001726]
[1734323962385,0.464376,104640.0,104620.0,0.1501726]
[1734323964634,0.273243,104640.0,104620.0,0.1501726]
[1734323964859,0.464385,104640.0,104620.0,0.1501726]
[1734323965057,0.191149,104630.0,104620.0,0.0001726]
[1734323971186,0.77915218,104640.0,104620.0,0.0001726]
[1734323972334,0.191149,104630.0,104620.0,0.0001726]
[1734323977398,0.191149,104630.0,104620.0,0.0011726]
[1734323991825,0.2854397,104630.0,104620.0,0.0110783]
[1734323994779,0.2854397,104630.0,104620.0,0.0011726]
[1734324000801,0.37961496,104630.0,104620.0,0.0011726]
[1734324001212,0.2854397,104630.0,104620.0,0.0011726]
[1734324001796,0.50932541,104630.0,104620.0,0.0011726]
[1734324001997,0.80948889,104630.0,104620.0,0.0011726]
[1734324002494,0.75306417,104630.0,104620.0,0.0011726]
[1734324002704,0.8096414,104630.0,104620.0,0.0011726]
[1734324004562,0.93833373,104630.0,104620.0,0.0011726]
[1734324005325,1.02418052,104630.0,104620.0,0.0011726]
[1734324005531,0.93833373,104630.0,104620.0,0.0011726]
[1734324005937,0.88190901,104630.0,104620.0,0.0011726]
[1734324006134,0.93833373,104630.0,104620.0,0.0011726]
[1734324007622,0.94330631,104630.0,104620.0,0.0011726]
[1734324011876,0.93833373,104630.0,104620.0,0.0011726]
[1734324016113,0.93864981,104630.0,104620.0,0.0011726]
[1734324019297,0.93864715,104630.0,104620.0,0.0011726]
[1734324020844,0.93862119,104630.0,104620.0,0.0011726]
[1734324020986,0.90403226,104630.0,104620.0,0.0011726]
[1734324022521,0.90900386,104630.0,104620.0,0.0011726]
[1734324023908,0.90900338,104630.0,104620.0,0.0011726]
[1734324024366,0.52271128,104630.0,104620.0,0.0011726]
[1734324024595,0.90899338,104630.0,104620.0,0.0011726]
[1734324025243,0.90900474,104630.0,104620.0,0.0011726]
[1734324025477,0.81482948,104630.0,104620.0,0.0011726]
[1734324025871,0.382346,104620.0,104600.0,0.14186387]
[1734324026069,0.69124721,104620.0,104600.0,0.12705259]
[1734324026272,0.69124721,104620.0,104600.0,0.14197149]
[1734324026477,0.191186,104610.0,104600.0,0.14197149]
[1734324028131,0.191186,104610.0,104590.0,0.28061304]
[1734324028339,0.191186,104610.0,104590.0,0.28117727]
[1734324029653,0.5624809,104620.0,104590.0,0.28117727]
[1734324029949,0.61890562,104620.0,104590.0,0.28117727]
[1734324030325,0.191186,104610.0,104590.0,0.28117727]
[1734324030953,0.191186,104610.0,104590.0,0.40457727]
[1734324032900,0.69870662,104620.0,104590.0,0.59578927]
[1734324033105,0.7558908,104620.0,104590.0,0.59578927]
[1734324033275,0.191186,104610.0,104590.0,0.59578927]
[1734324034285,0.12518599,104610.0,104590.0,0.59578927]
[1734324034481,0.822557,104620.0,104590.0,0.59578927]
[1734324034771,0.191204,104600.0,104590.0,0.2034555]
[1734324035013,0.191204,104600.0,104590.0,0.2035418]
[1734324036018,0.56270223,104610.0,104590.0,0.2035418]
[1734324036219,0.4768473,104610.0,104590.0,0.2035418]
[1734324036625,0.0001726,104610.0,104590.0,0.5859768]
[1734324036826,0.0001726,104610.0,104600.0,0.0789]
[1734324040409,0.0001726,104610.0,104600.0,0.52532872]
[1734324041263,0.0001726,104610.0,104600.0,0.468904]
[1734324043047,0.0001726,104610.0,104600.0,0.47893007]
[1734324043259,0.0001726,104610.0,104600.0,0.2777]
[1734324043419,0.0001726,104610.0,104600.0,0.15]
[1734324043614,0.24778332,104610.0,104590.0,0.22985053]
[1734324043821,0.52483801,104610.0,104590.0,0.22985053]
[1734324044039,0.71604201,104610.0,104590.0,0.22985053]
[1734324044242,0.52483801,104610.0,104590.0,0.22985053]
[1734324044454,0.59719583,104610.0,104590.0,0.22985053]
[1734324044665,0.65362055,104610.0,104590.0,0.22985053]
[1734324044872,0.65362055,104610.0,104590.0,0.15065053]
[1734324045086,0.191204,104600.0,104590.0,0.15065053]
[1734324046604,0.27705969,104600.0,104590.0,0.15065053]
[1734324047011,0.27705969,104600.0,104590.0,0.00065053]
[1734324047208,0.33348441,104600.0,104590.0,0.00065053]
[1734324047412,0.46226795,104600.0,104590.0,0.00065053]
[1734324047831,0.51869267,104600.0,104590.0,0.00065053]
[1734324048933,0.83631871,104600.0,104590.0,0.00065053]
[1734324049201,1.05097473,104600.0,104590.0,0.00065053]
[1734324049407,0.45277878,104600.0,104590.0,0.00065053]
[1734324049602,0.81569416,104600.0,104590.0,0.00065053]
[1734324049943,0.90998486,104600.0,104590.0,0.00065053]
[1734324050151,0.90995802,104600.0,104590.0,0.00065053]
[1734324050518,0.82413906,104600.0,104590.0,0.00065053]
[1734324050724,0.83396236,104600.0,104590.0,0.00065053]
[1734324051253,0.91975397,104600.0,104590.0,0.00065053]
[1734324051971,0.91952941,104600.0,104590.0,0.00065053]
[1734324052552,1.01370467,104600.0,104590.0,0.00065053]
[1734324053298,0.92450204,104600.0,104590.0,0.00065053]
[1734324053417,0.98092676,104600.0,104590.0,0.00065053]
[1734324053959,0.97450204,104600.0,104590.0,0.00065053]
[1734324054358,1.03092676,104600.0,104590.0,0.00065053]
[1734324055537,0.80291894,104600.0,104590.0,0.00065053]
[1734324055736,0.75291894,104600.0,104590.0,0.00065053]
[1734324056461,0.8470942,104600.0,104590.0,0.00065053]
[1734324059328,1.0186773,104600.0,104590.0,0.00065053]
[1734324059871,0.75291894,104600.0,104590.0,0.00065053]
[1734324060690,0.75258014,104600.0,104590.0,0.00065053]
[1734324061295,1.00900486,104600.0,104590.0,1e-08]
[1734324061546,0.2761,104580.0,104570.0,0.01509528]
[1734324061745,0.93176149,104580.0,104570.0,0.0001726]
[1734324061949,1.19722081,104580.0,104570.0,0.01509795]
[1734324062330,1.02593675,104580.0,104570.0,0.01509795]
[1734324062974,0.98818621,104580.0,104570.0,0.01509795]
[1734324063177,0.87533677,104580.0,104570.0,0.01509795]
[1734324063501,0.98818621,104580.0,104570.0,0.01509795]
[1734324063710,0.98818621,104580.0,104560.0,0.0001726]
[1734324063711,0.516359,104570.0,104560.0,0.0001726]
[1734324063879,1.11797462,104570.0,104560.0,0.0001726]
[1734324064078,1.23555403,104570.0,104560.0,0.0001726]
[1734324064351,1.32178841,104570.0,104560.0,0.0001726]
[1734324064525,1.44988337,104570.0,104560.0,0.0001726]
[1734324064734,1.32156283,104570.0,104560.0,0.0001726]
[1734324064935,1.15046877,104570.0,104560.0,0.0001726]
[1734324065139,1.32157139,104570.0,104560.0,0.0001726]
[1734324065473,1.62157139,104570.0,104560.0,0.0001726]
[1734324066293,1.74973788,104570.0,104560.0,0.0001726]
[1734324067338,1.62127199,104570.0,104560.0,0.0001726]
[1734324068637,1.45009899,104570.0,104560.0,0.0001726]